[Event "Live Chess"]
[Site "Chess.com"]
[Date "2023.05.20"]
[Round "-"]
[White "vovanada"]
[Black "Lewstar1"]
[Result "0-1"]
[WhiteElo "811"]
[BlackElo "456"]
[TimeControl "300"]
[EndTime "12:03:04 PDT"]
[Termination "Lewstar1 won on time"]

1. d4 {[%clk 0:04:57.4]} 1... d5 {[%clk 0:04:57.1]} 2. Bf4 {[%clk 0:04:56.8]}
2... Nc6 {[%clk 0:04:53]} 3. e3 {[%clk 0:04:56.2]} 3... Bf5 {[%clk 0:04:50.9]}
4. Nf3 {[%clk 0:04:53]} 4... f6 {[%clk 0:04:49.9]} 5. c3 {[%clk 0:04:49.9]} 5...
e6 {[%clk 0:04:44.2]} 6. Bd3 {[%clk 0:04:47.4]} 6... Nge7 {[%clk 0:04:40.5]} 7.
Bxf5 {[%clk 0:04:43.7]} 7... Nxf5 {[%clk 0:04:38.7]} 8. Nbd2 {[%clk 0:04:42.2]}
8... g6 {[%clk 0:04:32.6]} 9. Qb3 {[%clk 0:04:37.2]} 9... Rb8 {[%clk 0:04:26.3]}
10. c4 {[%clk 0:04:29.8]} 10... b5 {[%clk 0:04:17.9]} 11. cxb5 {[%clk 0:04:15]}
11... Na5 {[%clk 0:04:15.1]} 12. Qa4 {[%clk 0:04:05.6]} 12... Nb7 {[%clk
0:04:03.1]} 13. b6+ {[%clk 0:03:57.4]} 13... Qd7 {[%clk 0:03:43.1]} 14. Qxd7+
{[%clk 0:03:46]} 14... Kxd7 {[%clk 0:03:38.9]} 15. bxa7 {[%clk 0:03:38.1]} 15...
Ra8 {[%clk 0:03:35.5]} 16. Nb3 {[%clk 0:03:31.1]} 16... Nbd6 {[%clk 0:03:29.5]}
17. Nc5+ {[%clk 0:03:23.6]} 17... Kc6 {[%clk 0:03:18.5]} 18. Nxe6 {[%clk
0:03:15.1]} 18... Bg7 {[%clk 0:03:06]} 19. Nxg7 {[%clk 0:03:11.5]} 19... Nxg7
{[%clk 0:03:05]} 20. Bxd6 {[%clk 0:02:57.1]} 20... Kxd6 {[%clk 0:03:01.7]} 21.
O-O {[%clk 0:02:54]} 21... Rxa7 {[%clk 0:03:00.1]} 22. a4 {[%clk 0:02:51.8]}
22... Rha8 {[%clk 0:02:58.3]} 23. b3 {[%clk 0:02:50]} 23... c5 {[%clk
0:02:55.3]} 24. dxc5+ {[%clk 0:02:47.4]} 24... Kxc5 {[%clk 0:02:55.2]} 25. Nd4
{[%clk 0:02:41.2]} 25... Nf5 {[%clk 0:02:38.7]} 26. Nb5 {[%clk 0:02:29.1]} 26...
Ra5 {[%clk 0:02:31.6]} 27. Nc7 {[%clk 0:02:21.4]} 27... R8a7 {[%clk 0:02:17]}
28. Nb5 {[%clk 0:02:15.5]} 28... R7a6 {[%clk 0:02:11.3]} 29. Rfc1+ {[%clk
0:02:14.1]} 29... Kb4 {[%clk 0:02:03.6]} 30. Nc7 {[%clk 0:02:04.4]} 30... Rb6
{[%clk 0:01:51.4]} 31. Rd1 {[%clk 0:01:44.1]} 31... Kxb3 {[%clk 0:01:37]} 32.
Nxd5 {[%clk 0:01:40.2]} 32... Rba6 {[%clk 0:01:20.2]} 33. Nxf6 {[%clk
0:01:34.4]} 33... Rxf6 {[%clk 0:01:14.4]} 34. Rab1+ {[%clk 0:01:25.6]} 34...
Kxa4 {[%clk 0:01:10.2]} 35. Ra1+ {[%clk 0:01:24.7]} 35... Kb4 {[%clk 0:01:09]}
36. Rxa5 {[%clk 0:01:21.3]} 36... Kxa5 {[%clk 0:01:08.9]} 37. e4 {[%clk
0:01:19.5]} 37... Nh6 {[%clk 0:01:00.3]} 38. f3 {[%clk 0:01:16.7]} 38... Rb6
{[%clk 0:00:49]} 39. h4 {[%clk 0:01:10]} 39... Rb2 {[%clk 0:00:47.1]} 40. Kh2
{[%clk 0:01:05.8]} 40... Nf7 {[%clk 0:00:42.6]} 41. Kh3 {[%clk 0:01:02.7]} 41...
Ne5 {[%clk 0:00:40.4]} 42. f4 {[%clk 0:00:59.3]} 42... Nc4 {[%clk 0:00:25.3]}
43. g3 {[%clk 0:00:52.7]} 43... Nd2 {[%clk 0:00:23.5]} 44. Kg4 {[%clk
0:00:42.5]} 44... Nxe4 {[%clk 0:00:19.9]} 45. h5 {[%clk 0:00:37.8]} 45... Nf2+
{[%clk 0:00:19.2]} 46. Kg5 {[%clk 0:00:33.3]} 46... Nxd1 {[%clk 0:00:19.1]} 47.
hxg6 {[%clk 0:00:32.2]} 47... hxg6 {[%clk 0:00:19]} 48. Kxg6 {[%clk 0:00:30.8]}
48... Rb6+ {[%clk 0:00:18.2]} 49. Kg5 {[%clk 0:00:29.1]} 49... Rb5+ {[%clk
0:00:17.3]} 50. f5 {[%clk 0:00:28.7]} 50... Rb4 {[%clk 0:00:16.4]} 51. g4 {[%clk
0:00:27.8]} 51... Rc4 {[%clk 0:00:13.9]} 52. f6 {[%clk 0:00:26.6]} 52... Ne3
{[%clk 0:00:13.5]} 53. Kh5 {[%clk 0:00:23.5]} 53... Rc5+ {[%clk 0:00:12.1]} 54.
Kg6 {[%clk 0:00:22.4]} 54... Rc8 {[%clk 0:00:12]} 55. f7 {[%clk 0:00:21.5]}
55... Nd5 {[%clk 0:00:11.5]} 56. Kg7 {[%clk 0:00:21.1]} 56... Nc7 {[%clk
0:00:08.8]} 57. f8=Q {[%clk 0:00:19.8]} 57... Ne6+ {[%clk 0:00:08.3]} 58. Kf7
{[%clk 0:00:16.4]} 58... Nxf8 {[%clk 0:00:08.2]} 59. Kf6 {[%clk 0:00:14.1]}
59... Rc4 {[%clk 0:00:08.1]} 60. g5 {[%clk 0:00:12.9]} 60... Rg4 {[%clk
0:00:08]} 61. g6 {[%clk 0:00:12]} 61... Nd7+ {[%clk 0:00:06.4]} 62. Kf7 {[%clk
0:00:09]} 62... Ne5+ {[%clk 0:00:04.8]} 63. Kf6 {[%clk 0:00:07.1]} 63... Nxg6
{[%clk 0:00:04.7]} 64. Kf5 {[%clk 0:00:05.9]} 64... Re4 {[%clk 0:00:04.6]} 65.
Kxg6 {[%clk 0:00:04.9]} 65... Rd4 {[%clk 0:00:04.5]} 66. Kf6 {[%clk 0:00:04.4]}
66... Rd1 {[%clk 0:00:04.4]} 67. Kf5 {[%clk 0:00:03.9]} 67... Rc1 {[%clk
0:00:04.3]} 68. Ke5 {[%clk 0:00:03.4]} 68... Rc2 {[%clk 0:00:04.2]} 69. Ke6
{[%clk 0:00:01.5]} 69... Ra2 {[%clk 0:00:04.1]} 70. Kf6 {[%clk 0:00:01.1]} 70...
Ra3 {[%clk 0:00:04]} 71. Kf5 {[%clk 0:00:00.6]} 71... Rc3 {[%clk 0:00:03.9]} 72.
Kg4 {[%clk 0:00:00.3]} 72... Rc2 {[%clk 0:00:03.8]} 0-1

[Event "Live Chess"]
[Site "Chess.com"]
[Date "2023.05.20"]
[Round "-"]
[White "1600x"]
[Black "MaximKris"]
[Result "1-0"]
[WhiteElo "1711"]
[BlackElo "1877"]
[TimeControl "300"]
[EndTime "12:03:12 PDT"]
[Termination "1600x won by checkmate"]

1. e4 {[%clk 0:04:53.1]} 1... e5 {[%clk 0:04:58.1]} 2. Nf3 {[%clk 0:04:49.7]}
2... Nc6 {[%clk 0:04:56.8]} 3. h3 {[%clk 0:04:39.3]} 3... Bc5 {[%clk 0:04:49.2]}
4. Nc3 {[%clk 0:04:37.2]} 4... Nf6 {[%clk 0:04:47.7]} 5. Bc4 {[%clk 0:04:35.3]}
5... d6 {[%clk 0:04:46.8]} 6. O-O {[%clk 0:04:31.8]} 6... Be6 {[%clk 0:04:46.2]}
7. Bxe6 {[%clk 0:04:29.5]} 7... fxe6 {[%clk 0:04:46.1]} 8. d3 {[%clk 0:04:27.8]}
8... O-O {[%clk 0:04:44.8]} 9. Na4 {[%clk 0:04:26.3]} 9... b5 {[%clk 0:04:26]}
10. Nxc5 {[%clk 0:04:24.4]} 10... dxc5 {[%clk 0:04:25.9]} 11. Be3 {[%clk
0:04:21.9]} 11... Nd4 {[%clk 0:04:23]} 12. Nxe5 {[%clk 0:04:19.9]} 12... Qd6
{[%clk 0:04:20]} 13. f4 {[%clk 0:04:17.7]} 13... Qc6 {[%clk 0:04:19.9]} 14. Nxc6
{[%clk 0:04:15.7]} 14... Nxc6 {[%clk 0:04:17.8]} 15. Bxc5 {[%clk 0:04:13.8]}
15... Rfe8 {[%clk 0:04:16.4]} 16. a4 {[%clk 0:04:09.1]} 16... Re7 {[%clk
0:04:16.3]} 17. axb5 {[%clk 0:04:07.7]} 17... Rd7 {[%clk 0:04:16.2]} 18. bxc6
{[%clk 0:04:06.4]} 18... Rdd8 {[%clk 0:04:16.1]} 19. Bxa7 {[%clk 0:04:04.3]}
19... Re8 {[%clk 0:04:16]} 20. Bd4 {[%clk 0:04:02.6]} 20... Re7 {[%clk
0:04:15.9]} 21. Rxa8+ {[%clk 0:03:59.8]} 21... Re8 {[%clk 0:04:14.6]} 22. Rxe8+
{[%clk 0:03:58.1]} 22... Kf7 {[%clk 0:04:14.5]} 23. Rc8 {[%clk 0:03:56.3]} 23...
Kg6 {[%clk 0:04:14.1]} 24. Rxc7 {[%clk 0:03:54.9]} 24... Kh6 {[%clk 0:04:14]}
25. g4 {[%clk 0:03:53.4]} 25... g6 {[%clk 0:04:13.9]} 26. h4 {[%clk 0:03:52.6]}
26... g5 {[%clk 0:04:13.8]} 27. fxg5+ {[%clk 0:03:51.5]} 27... Kg6 {[%clk
0:04:13]} 28. gxf6 {[%clk 0:03:50.5]} 28... h5 {[%clk 0:04:11.7]} 29. gxh5+
{[%clk 0:03:49.6]} 29... Kh6 {[%clk 0:04:11.5]} 30. Be3# {[%clk 0:03:48.2]} 1-0

[Event "Live Chess"]
[Site "Chess.com"]
[Date "2023.05.20"]
[Round "-"]
[White "JoshMcK"]
[Black "thrithik"]
[Result "1-0"]
[WhiteElo "1553"]
[BlackElo "459"]
[TimeControl "300"]
[EndTime "12:03:33 PDT"]
[Termination "JoshMcK won by checkmate"]

1. e4 {[%clk 0:04:57.5]} 1... c5 {[%clk 0:04:58.8]} 2. c3 {[%clk 0:04:56.1]}
2... d5 {[%clk 0:04:57.8]} 3. exd5 {[%clk 0:04:55.1]} 3... e6 {[%clk 0:04:55.7]}
4. d4 {[%clk 0:04:55]} 4... exd5 {[%clk 0:04:53.1]} 5. dxc5 {[%clk 0:04:50.7]}
5... Qe7+ {[%clk 0:04:49.4]} 6. Qe2 {[%clk 0:04:49]} 6... Qxe2+ {[%clk
0:04:38.5]} 7. Bxe2 {[%clk 0:04:48.9]} 7... Bxc5 {[%clk 0:04:35.2]} 8. Nf3
{[%clk 0:04:46.7]} 8... Bf5 {[%clk 0:04:24.9]} 9. O-O {[%clk 0:04:43.9]} 9...
Be4 {[%clk 0:04:23]} 10. Re1 {[%clk 0:04:42.4]} 10... Bxf3 {[%clk 0:04:20.1]}
11. Bb5+ {[%clk 0:04:41]} 11... Kf8 {[%clk 0:04:09.2]} 12. Re8# {[%clk
0:04:39.6]} 1-0

[Event "Live Chess"]
[Site "Chess.com"]
[Date "2023.05.20"]
[Round "-"]
[White "ElectricFalcon"]
[Black "jennybobby44"]
[Result "0-1"]
[WhiteElo "1065"]
[BlackElo "1892"]
[TimeControl "300"]
[EndTime "12:03:40 PDT"]
[Termination "jennybobby44 won by resignation"]

1. d4 {[%clk 0:04:59.5]} 1... Nf6 {[%clk 0:04:59]} 2. c4 {[%clk 0:04:59.4]} 2...
e6 {[%clk 0:04:56.8]} 3. Nf3 {[%clk 0:04:55.9]} 3... c5 {[%clk 0:04:55.8]} 4. d5
{[%clk 0:04:53.7]} 4... d6 {[%clk 0:04:52.3]} 5. Nc3 {[%clk 0:04:51.7]} 5... e5
{[%clk 0:04:51.7]} 6. e4 {[%clk 0:04:50.5]} 6... g6 {[%clk 0:04:51.1]} 7. Be2
{[%clk 0:04:49.1]} 7... Bg7 {[%clk 0:04:50.7]} 8. O-O {[%clk 0:04:48.4]} 8...
O-O {[%clk 0:04:50.2]} 9. Bg5 {[%clk 0:04:46.1]} 9... h6 {[%clk 0:04:49]} 10.
Bxf6 {[%clk 0:04:43.8]} 10... Qxf6 {[%clk 0:04:47.5]} 11. b3 {[%clk 0:04:30.9]}
11... a6 {[%clk 0:04:46.2]} 12. a3 {[%clk 0:04:29.6]} 12... Nd7 {[%clk
0:04:40.4]} 13. b4 {[%clk 0:04:28.1]} 13... b6 {[%clk 0:04:39.4]} 14. bxc5
{[%clk 0:04:27.2]} 14... bxc5 {[%clk 0:04:38.8]} 15. a4 {[%clk 0:04:22.2]} 15...
Qe7 {[%clk 0:04:34.3]} 16. a5 {[%clk 0:04:20.8]} 16... f5 {[%clk 0:04:32.4]} 17.
Qc2 {[%clk 0:04:09.8]} 17... f4 {[%clk 0:04:30.4]} 18. Na4 {[%clk 0:03:55.2]}
18... g5 {[%clk 0:04:25.6]} 19. Nb6 {[%clk 0:03:52.5]} 19... Nxb6 {[%clk
0:04:09.4]} 20. axb6 {[%clk 0:03:51.5]} 20... Rb8 {[%clk 0:04:08.9]} 21. Rab1
{[%clk 0:03:50.4]} 21... g4 {[%clk 0:04:05.5]} 22. Nd2 {[%clk 0:03:48.2]} 22...
Qg5 {[%clk 0:03:32.4]} 23. Qa4 {[%clk 0:03:35.3]} 23... f3 {[%clk 0:03:25.7]}
24. gxf3 {[%clk 0:03:20.7]} 24... Qxd2 {[%clk 0:03:24.2]} 25. Bd1 {[%clk
0:03:17.7]} 25... gxf3 {[%clk 0:03:21.5]} 26. Qc6 {[%clk 0:03:11.4]} 26... Qg5+
{[%clk 0:03:18.3]} 0-1

[Event "Live Chess"]
[Site "Chess.com"]
[Date "2023.05.20"]
[Round "-"]
[White "manthanit"]
[Black "ACx04"]
[Result "1-0"]
[WhiteElo "945"]
[BlackElo "429"]
[TimeControl "300"]
[EndTime "12:03:40 PDT"]
[Termination "manthanit won by checkmate"]

1. e4 {[%clk 0:04:56.8]} 1... e5 {[%clk 0:04:58.3]} 2. d4 {[%clk 0:04:55.7]}
2... exd4 {[%clk 0:04:57]} 3. Qxd4 {[%clk 0:04:55.3]} 3... Nc6 {[%clk
0:04:56.3]} 4. Qd1 {[%clk 0:04:53.8]} 4... Bc5 {[%clk 0:04:53.2]} 5. Nf3 {[%clk
0:04:51.5]} 5... d6 {[%clk 0:04:52.6]} 6. h3 {[%clk 0:04:50.5]} 6... Be6 {[%clk
0:04:50.5]} 7. Nc3 {[%clk 0:04:47.8]} 7... h6 {[%clk 0:04:49.3]} 8. a3 {[%clk
0:04:46.8]} 8... a6 {[%clk 0:04:45.7]} 9. Bd2 {[%clk 0:04:45.6]} 9... b5 {[%clk
0:04:44.7]} 10. Bd3 {[%clk 0:04:40.8]} 10... g5 {[%clk 0:04:39.4]} 11. Nd5
{[%clk 0:04:34.7]} 11... Bxd5 {[%clk 0:04:37.9]} 12. exd5 {[%clk 0:04:33.2]}
12... Nd4 {[%clk 0:04:36.4]} 13. Bc3 {[%clk 0:04:31.9]} 13... Nxf3+ {[%clk
0:04:34.6]} 14. Qxf3 {[%clk 0:04:30.4]} 14... Qd7 {[%clk 0:04:33.2]} 15. Bxh8
{[%clk 0:04:27.1]} 15... Qe7+ {[%clk 0:04:30.6]} 16. Be2 {[%clk 0:04:25.1]}
16... O-O-O {[%clk 0:04:21.6]} 17. O-O {[%clk 0:04:23.7]} 17... Qe5 {[%clk
0:04:17.3]} 18. Bxe5 {[%clk 0:04:21.9]} 18... f6 {[%clk 0:04:15]} 19. Bc3 {[%clk
0:04:19]} 19... a5 {[%clk 0:04:11.5]} 20. Bxb5 {[%clk 0:04:15.2]} 20... c6
{[%clk 0:04:09.9]} 21. Bxc6 {[%clk 0:04:13.1]} 21... Kc7 {[%clk 0:04:08]} 22.
Bxa5+ {[%clk 0:04:11]} 22... Kc8 {[%clk 0:04:04.7]} 23. Qf5+ {[%clk 0:04:09.7]}
23... Kb8 {[%clk 0:04:02.9]} 24. Bxd8 {[%clk 0:04:08.7]} 24... Ka7 {[%clk
0:03:58.3]} 25. b4 {[%clk 0:04:02.8]} 25... Ka6 {[%clk 0:03:53.1]} 26. bxc5
{[%clk 0:04:00.9]} 26... dxc5 {[%clk 0:03:51.6]} 27. Qd3+ {[%clk 0:03:56.6]}
27... Ka7 {[%clk 0:03:46.2]} 28. Qb5 {[%clk 0:03:55.7]} 28... Ne7 {[%clk
0:03:42.6]} 29. Qb7# {[%clk 0:03:54.6]} 1-0

[Event "Live Chess"]
[Site "Chess.com"]
[Date "2023.05.20"]
[Round "-"]
[White "Ferrarifan27"]
[Black "mikkyb4"]
[Result "1-0"]
[WhiteElo "2103"]
[BlackElo "1010"]
[TimeControl "300"]
[EndTime "12:03:41 PDT"]
[Termination "Ferrarifan27 won by resignation"]

1. e4 {[%clk 0:04:57.2]} 1... g6 {[%clk 0:04:58.7]} 2. d4 {[%clk 0:04:55.9]}
2... Bg7 {[%clk 0:04:57.6]} 3. Nf3 {[%clk 0:04:55.5]} 3... d6 {[%clk 0:04:55.3]}
4. Bd3 {[%clk 0:04:52.6]} 4... Nc6 {[%clk 0:04:48.2]} 5. Be3 {[%clk 0:04:50.1]}
5... e5 {[%clk 0:04:46.7]} 6. d5 {[%clk 0:04:46.6]} 6... Nce7 {[%clk 0:04:45.4]}
7. O-O {[%clk 0:04:45.4]} 7... Nf6 {[%clk 0:04:43.7]} 8. Qd2 {[%clk 0:04:44.5]}
8... O-O {[%clk 0:04:41.3]} 9. h3 {[%clk 0:04:42.8]} 9... Nd7 {[%clk 0:04:36.3]}
10. Bh6 {[%clk 0:04:41.2]} 10... f5 {[%clk 0:04:32.3]} 11. Bxg7 {[%clk 0:04:35]}
11... Kxg7 {[%clk 0:04:31.2]} 12. Ng5 {[%clk 0:04:34.1]} 12... f4 {[%clk
0:04:27.7]} 13. Ne6+ {[%clk 0:04:32.9]} 13... Kh8 {[%clk 0:04:21.1]} 14. Nxd8
{[%clk 0:04:29.9]} 14... Rxd8 {[%clk 0:04:00]} 15. Nc3 {[%clk 0:04:23.4]} 15...
Nc5 {[%clk 0:03:58]} 16. Nb5 {[%clk 0:04:20.6]} 16... Nxd3 {[%clk 0:03:45.3]}
17. cxd3 {[%clk 0:04:20.5]} 1-0

[Event "Live Chess"]
[Site "Chess.com"]
[Date "2023.05.20"]
[Round "-"]
[White "MarkLim1"]
[Black "diana21strabt"]
[Result "1-0"]
[WhiteElo "1654"]
[BlackElo "1678"]
[TimeControl "300"]
[EndTime "12:03:49 PDT"]
[Termination "MarkLim1 won by resignation"]

1. d4 {[%clk 0:04:57.7]} 1... Nf6 {[%clk 0:04:51]} 2. Nf3 {[%clk 0:04:56.9]}
2... g6 {[%clk 0:04:46.1]} 3. c4 {[%clk 0:04:55.9]} 3... Bg7 {[%clk 0:04:45.4]}
4. Nc3 {[%clk 0:04:55.2]} 4... O-O {[%clk 0:04:44.5]} 5. e4 {[%clk 0:04:54.6]}
5... d6 {[%clk 0:04:43.6]} 6. Be2 {[%clk 0:04:53.9]} 6... Nbd7 {[%clk
0:04:42.6]} 7. O-O {[%clk 0:04:52.7]} 7... e5 {[%clk 0:04:41.8]} 8. d5 {[%clk
0:04:52]} 8... Nc5 {[%clk 0:04:40.7]} 9. Qc2 {[%clk 0:04:51.4]} 9... a5 {[%clk
0:04:39.6]} 10. Bg5 {[%clk 0:04:50.7]} 10... h6 {[%clk 0:04:36]} 11. Be3 {[%clk
0:04:49.7]} 11... b6 {[%clk 0:04:33.1]} 12. Nd2 {[%clk 0:04:48.2]} 12... Bd7
{[%clk 0:04:24.7]} 13. a3 {[%clk 0:04:44.8]} 13... a4 {[%clk 0:04:21.4]} 14. Nb5
{[%clk 0:04:41]} 14... Bxb5 {[%clk 0:04:18.9]} 15. cxb5 {[%clk 0:04:39.8]} 15...
Nh7 {[%clk 0:04:10.1]} 16. b4 {[%clk 0:04:19.3]} 16... Nd7 {[%clk 0:04:03.1]}
17. Rac1 {[%clk 0:04:11.5]} 17... Ra7 {[%clk 0:03:57.7]} 18. Nc4 {[%clk
0:04:04.4]} 18... Ng5 {[%clk 0:03:52.6]} 19. Nb2 {[%clk 0:04:01.5]} 19... Nf6
{[%clk 0:03:50]} 20. f3 {[%clk 0:04:00]} 20... Nfh7 {[%clk 0:03:48]} 21. Ra1
{[%clk 0:03:45.5]} 21... f5 {[%clk 0:03:45.7]} 22. exf5 {[%clk 0:03:26.9]} 22...
gxf5 {[%clk 0:03:43.6]} 23. Nxa4 {[%clk 0:03:25.3]} 23... f4 {[%clk 0:03:40.6]}
24. Bf2 {[%clk 0:03:22.8]} 24... Qf6 {[%clk 0:03:31.4]} 25. Nc3 {[%clk
0:03:19.3]} 25... Qf5 {[%clk 0:03:25.3]} 26. Qxf5 {[%clk 0:03:17.5]} 26... Rxf5
{[%clk 0:03:23.9]} 27. Ne4 {[%clk 0:03:13]} 27... Nxe4 {[%clk 0:03:22.3]} 28.
fxe4 {[%clk 0:03:11.9]} 28... Rg5 {[%clk 0:03:21.3]} 29. Bh4 {[%clk 0:03:02.6]}
29... Rg6 {[%clk 0:02:57.2]} 30. Bh5 {[%clk 0:03:01]} 30... Rf6 {[%clk
0:02:56.1]} 31. Bxf6 {[%clk 0:02:59.3]} 31... Nxf6 {[%clk 0:02:55.4]} 32. Bf3
{[%clk 0:02:55.5]} 32... h5 {[%clk 0:02:53.4]} 33. Rfc1 {[%clk 0:02:53]} 33...
Kf7 {[%clk 0:02:50]} 34. Rc3 {[%clk 0:02:51.8]} 34... Ke7 {[%clk 0:02:48.3]} 35.
Rac1 {[%clk 0:02:50.7]} 35... Kd7 {[%clk 0:02:47]} 36. Kf2 {[%clk 0:02:48.7]}
36... Bh6 {[%clk 0:02:45.7]} 37. R1c2 {[%clk 0:02:46.8]} 37... Ng4+ {[%clk
0:02:37.2]} 38. Bxg4+ {[%clk 0:02:42.4]} 38... hxg4 {[%clk 0:02:36.4]} 39. h3
{[%clk 0:02:39.2]} 39... g3+ {[%clk 0:02:32.5]} 40. Kf3 {[%clk 0:02:29.7]} 40...
Bg5 {[%clk 0:02:30.3]} 41. Rc1 {[%clk 0:02:26.8]} 41... Bd8 {[%clk 0:02:21.5]}
42. Ra1 {[%clk 0:02:22.1]} 42... Be7 {[%clk 0:02:13.8]} 43. a4 {[%clk
0:02:20.6]} 43... Ra8 {[%clk 0:02:11.1]} 44. a5 {[%clk 0:02:19.3]} 44... Bf6
{[%clk 0:02:03.7]} 45. Rca3 {[%clk 0:02:16.2]} 45... bxa5 {[%clk 0:02:00.2]} 46.
bxa5 {[%clk 0:02:10.9]} 46... Kc8 {[%clk 0:01:57.3]} 47. Rc3 {[%clk 0:02:05.4]}
47... Kb7 {[%clk 0:01:55.8]} 48. Rc6 {[%clk 0:02:03.2]} 48... Bd8 {[%clk
0:01:53.8]} 49. a6+ {[%clk 0:02:01.4]} 49... Kb8 {[%clk 0:01:52]} 50. b6 {[%clk
0:01:55.1]} 50... cxb6 {[%clk 0:01:49.5]} 51. Rxd6 {[%clk 0:01:54.3]} 51... Bc7
{[%clk 0:01:48.2]} 52. Re6 {[%clk 0:01:46]} 52... Ka7 {[%clk 0:01:46.4]} 53. d6
{[%clk 0:01:41.9]} 53... Bb8 {[%clk 0:01:41.3]} 54. Re7+ {[%clk 0:01:39]} 1-0

[Event "Live Chess"]
[Site "Chess.com"]
[Date "2023.05.20"]
[Round "-"]
[White "LodeshChess"]
[Black "lightningorderyt"]
[Result "1-0"]
[WhiteElo "989"]
[BlackElo "527"]
[TimeControl "300"]
[EndTime "12:03:50 PDT"]
[Termination "LodeshChess won by checkmate"]

1. e4 {[%clk 0:04:59]} 1... c6 {[%clk 0:04:54.3]} 2. Nf3 {[%clk 0:04:57]} 2...
d5 {[%clk 0:04:52.4]} 3. d3 {[%clk 0:04:55.2]} 3... Nf6 {[%clk 0:04:49.7]} 4.
Nc3 {[%clk 0:04:51]} 4... Bg4 {[%clk 0:04:43.1]} 5. exd5 {[%clk 0:04:47.8]} 5...
cxd5 {[%clk 0:04:36.7]} 6. h3 {[%clk 0:04:44.6]} 6... Bh5 {[%clk 0:04:32.9]} 7.
Be2 {[%clk 0:04:43.3]} 7... Bxf3 {[%clk 0:04:25.6]} 8. Bxf3 {[%clk 0:04:41.7]}
8... e5 {[%clk 0:04:25.5]} 9. O-O {[%clk 0:04:36.7]} 9... Nc6 {[%clk 0:04:24.2]}
10. Bg5 {[%clk 0:04:31]} 10... d4 {[%clk 0:04:13.5]} 11. Ne4 {[%clk 0:04:22]}
11... Be7 {[%clk 0:04:05.2]} 12. c3 {[%clk 0:04:08.9]} 12... Nxe4 {[%clk
0:04:00.6]} 13. Bxe7 {[%clk 0:04:07.8]} 13... Qxe7 {[%clk 0:03:59.3]} 14. Bxe4
{[%clk 0:04:04.1]} 14... O-O {[%clk 0:03:53.5]} 15. Qh5 {[%clk 0:03:54.4]} 15...
g6 {[%clk 0:03:39.3]} 16. Qh6 {[%clk 0:03:44.1]} 16... f5 {[%clk 0:03:15.2]} 17.
Bd5+ {[%clk 0:03:39.6]} 17... Kh8 {[%clk 0:03:11.8]} 18. c4 {[%clk 0:03:36.6]}
18... Nb4 {[%clk 0:03:04.4]} 19. Rfd1 {[%clk 0:03:24.8]} 19... Nxd5 {[%clk
0:02:57.8]} 20. cxd5 {[%clk 0:03:23.3]} 20... Qb4 {[%clk 0:02:47.9]} 21. b3
{[%clk 0:02:37.1]} 21... Rfd8 {[%clk 0:02:21.5]} 22. Rac1 {[%clk 0:02:25.8]}
22... Rxd5 {[%clk 0:02:13.4]} 23. Rc7 {[%clk 0:02:25.3]} 23... Rg8 {[%clk
0:02:02.4]} 24. Qxh7# {[%clk 0:02:23.6]} 1-0